Workbook

Sheet Macro-commandes (hidden)
A1: =#REF! ->  | C1: Administration communale de:
A3: Gestion informatique du document. | B3: Commandes :
A5: Cliquez sur la commande>>>
C7: Enregistré

Sheet Coordonnées
A1: Synthèse du Budget | D1: Administration communale de | J1: SOMME-LEUZE | P1: Code INS | R1: 91120
P2: Exercice: | R2: =N27 -> 2023
A3: Modèle officiel généré par l'application eComptes © SPW Intérieur et Action Sociale | P3: Version: | R3: 1
E7: S Y N T H È S E du B U D G E T I N I T I A L
E11: Module informatisé de publication des budgets annuels
A17: Commune de : | H17: SOMME-LEUZE
A19: Adresse de l'administration: | H19: Rue du Centre, 1
H20: 5377 BAILLONVILLE
H21: sommeleuze.be
A23: Date d’arrêt du budget par le conseil: | H23: 19/12/2022
A25: Date d'approbation de la Tutelle: | H25: 23/01/2023
A27: Type document: | H27: Budget | L27: Exercice: | N27: 2023
A29: Directeur Général: | H29: Isabelle PICARD
A30: Tél: | H30: 086 32 21 22
A31: Fax: | H31: 086 32 33 38
A32: Email: | H32: isabelle.picard@sommeleuze.be
A34: Directeur Financier: | H34: Anne-Catherine GOFFIN
A35: Tél: | H35: 086 32 02 58
A36: Fax: | H36: 086 32 33 38
A37: Email: | H37: annecatherine.goffin@sommeleuze.be

Sheet Résultats
A1: =Coordonnées!A1 -> Synthèse du Budget | D1: =Coordonnées!D1 -> Administration communale de | J1: =Coordonnées!J1 -> SOMME-LEUZE | P1: =Coordonnées!P1 -> Code INS | R1: =Coordonnées!R1 -> 91120
P2: =Coordonnées!P2 -> Exercice: | R2: =Coordonnées!R2 -> 2023
A3: =Coordonnées!A3 -> Modèle officiel généré par l'application eComptes © SPW Intérieur et Action Sociale | P3: =Coordonnées!P3 -> Version: | R3: =Coordonnées!R3 -> 1
H6: Evolution du résultat budgétaire ordinaire
H7: =Coordonnées!$H$27 -> Budget | K7: =Coordonnées!$H$27 -> Budget | N7: =Coordonnées!$H$27 -> Budget | Q7: =Coordonnées!$H$27 -> Budget | T7: =Coordonnées!$H$27 -> Budget
A8: Exercices: | H8: =K8-1 -> 2019 | K8: =N8-1 -> 2020 | N8: =Q8-1 -> 2021 | Q8: =T8-1 -> 2022 | T8: =R2 -> 2023
A9: Résultats Exercice Propre* | H9: ='Ordinaire GE'!H26-'Ordinaire GE'!H15 -> 220.18 | K9: ='Ordinaire GE'!K26-'Ordinaire GE'!K15 -> 17553.98 | N9: ='Ordinaire GE'!N26-'Ordinaire GE'!N15 -> 21423.94 | Q9: ='Ordinaire GE'!Q26-'Ordinaire GE'!Q15 -> 359.35 | T9: ='Ordinaire GE'!T26-'Ordinaire GE'!T15 -> 7691.01
A10: Résultat global* (avec exercices antérieurs et prélèvements) | H10: ='Ordinaire GE'!H29-'Ordinaire GE'!H18 -> 609360.09 | K10: ='Ordinaire GE'!K29-'Ordinaire GE'!K18 -> 625303.36 | N10: ='Ordinaire GE'!N29-'Ordinaire GE'!N18 -> 501544.82 | Q10: ='Ordinaire GE'!Q29-'Ordinaire GE'!Q18 -> 122778.14 | T10: ='Ordinaire GE'!T29-'Ordinaire GE'!T18 -> 595468.2
A11: * Montant arrondi à l'euro

Sheet Ordinaire GE
A1: =Coordonnées!A1 -> Synthèse du Budget | D1: =Coordonnées!D1 -> Administration communale de | J1: =Coordonnées!J1 -> SOMME-LEUZE | P1: =Coordonnées!P1 -> Code INS | R1: =Coordonnées!R1 -> 91120
P2: =Coordonnées!P2 -> Exercice: | R2: =Coordonnées!R2 -> 2023
A3: =Coordonnées!A3 -> Modèle officiel généré par l'application eComptes © SPW Intérieur et Action Sociale | P3: =Coordonnées!P3 -> Version: | R3: =Coordonnées!R3 -> 1
H6: Ventilation économique des dépenses et des recettes ordinaires
H7: =Coordonnées!$H$27 -> Budget | K7: =Coordonnées!$H$27 -> Budget | N7: =Coordonnées!$H$27 -> Budget | Q7: =Coordonnées!$H$27 -> Budget | T7: =Coordonnées!$H$27 -> Budget
H8: Dépenses ordinaires (Prévisions)
A9: Exercices: | H9: =K9-1 -> 2019 | K9: =N9-1 -> 2020 | N9: =Q9-1 -> 2021 | Q9: =T9-1 -> 2022 | T9: =R2 -> 2023
A10: Personnel | H10: 3070907.89 | I10: 5512664.26 | J10: 5512664.26 | K10: 3198912.12 | L10: 5512664.26 | M10: 5512664.26 | N10: 3431703.7 | O10: 5512664.26 | P10: 5512664.26 | Q10: 3543363.19 | R10: 5512664.26 | S10: 5512664.26 | T10: 3995124.1 | U10: 5512664.26 | V10: 5512664.26
A11: Fonctionnement | H11: 1647147.13 | I11: 2726342.74 | J11: 2726342.74 | K11: 1682647.37 | L11: 2726342.74 | M11: 2726342.74 | N11: 1810193.63 | O11: 2726342.74 | P11: 2726342.74 | Q11: 1897227.06 | R11: 2726342.74 | S11: 2726342.74 | T11: 2020621.22 | U11: 2726342.74 | V11: 2726342.74
A12: Transferts | H12: 1714842.94 | I12: 4264832.04 | J12: 4264832.04 | K12: 1833772.05 | L12: 4264832.04 | M12: 4264832.04 | N12: 1693574.59 | O12: 4264832.04 | P12: 4264832.04 | Q12: 1786188.24 | R12: 4264832.04 | S12: 4264832.04 | T12: 1912787.6 | U12: 4264832.04 | V12: 4264832.04
A13: Dette | H13: 850573.66 | I13: 41563.69 | J13: 41563.69 | K13: 900773 | L13: 41563.69 | M13: 41563.69 | N13: 876895.43 | O13: 41563.69 | P13: 41563.69 | Q13: 996432.55 | R13: 41563.69 | S13: 41563.69 | T13: 983436.43 | U13: 41563.69 | V13: 41563.69
A14: Prélèvements (hors 060) | H14: 5000 | I14: 0 | J14: 0 | K14: 0 | L14: 0 | M14: 0 | N14: 0 | O14: 0 | P14: 0 | Q14: 0 | R14: 0 | S14: 0 | T14: 0 | U14: 0 | V14: 0
A15: Total (exercice propre)* | H15: =SUM(H10:H14) -> 7288471.62 | K15: =SUM(K10:K14) -> 7616104.54 | N15: =SUM(N10:N14) -> 7812367.35 | Q15: =SUM(Q10:Q14) -> 8223211.04 | T15: =SUM(T10:T14) -> 8911969.35
A16: Exercices antérieurs | H16: 0 | I16: 1521059.02 | J16: 2351270.66 | K16: 40000 | L16: 1659060.83 | M16: 1521059.02 | N16: 0 | O16: 2230351.92 | P16: 1659060.83 | Q16: 0 | R16: 2351270.66 | S16: 2230351.92 | T16: 12943.83 | U16: 2351270.66 | V16: 2230351.92
A17: Prélèvements | H17: 0 | I17: 1192323.53 | J17: 824300.6 | K17: 0 | L17: 4295659.86 | M17: 1192323.53 | N17: 15000 | O17: 1045347.08 | P17: 4295659.86 | Q17: 0 | R17: 824300.6 | S17: 1045347.08 | T17: 0 | U17: 824300.6 | V17: 1045347.08
A18: Total général* | H18: =SUM(H15:H17) -> 7288471.62 | K18: =SUM(K15:K17) -> 7656104.54 | N18: =SUM(N15:N17) -> 7827367.35 | Q18: =SUM(Q15:Q17) -> 8223211.04 | T18: =SUM(T15:T17) -> 8924913.18
A19: * Montant arrondi à l'euro
H20: Recettes ordinaires (Prévisions)
A21: Exercices: | H21: =K21-1 -> 2019 | K21: =N21-1 -> 2020 | N21: =Q21-1 -> 2021 | Q21: =T21-1 -> 2022 | T21: =R2 -> 2023
A22: Prestation | H22: 396813.27 | I22: 373432.17 | J22: 697745.74 | K22: 381171.48 | L22: 373432.17 | M22: 697745.74 | N22: 409037.64 | O22: 373432.17 | P22: 697745.74 | Q22: 425019.15 | R22: 373432.17 | S22: 697745.74 | T22: 374857.64 | U22: 373432.17 | V22: 697745.74
A23: Transferts | H23: 6499203.7 | I23: 12728583.2 | J23: 13240574.68 | K23: 6660988.36 | L23: 12728583.2 | M23: 13240574.68 | N23: 6793478.82 | O23: 12728583.2 | P23: 13240574.68 | Q23: 7037276.41 | R23: 12728583.2 | S23: 13240574.68 | T23: 8443527.89 | U23: 12728583.2 | V23: 13240574.68
A24: Dette | H24: 35674.83 | I24: 548784.99 | J24: 408005.67 | K24: 31498.68 | L24: 548784.99 | M24: 408005.67 | N24: 31274.83 | O24: 548784.99 | P24: 408005.67 | Q24: 31274.83 | R24: 548784.99 | S24: 408005.67 | T24: 31274.83 | U24: 548784.99 | V24: 408005.67
A25: Prélèvements | H25: 357000 | I25: 0 | J25: 0 | K25: 560000 | L25: 0 | M25: 0 | N25: 600000 | O25: 0 | P25: 0 | Q25: 730000 | R25: 0 | S25: 0 | T25: 70000 | U25: 0 | V25: 0
A26: Total (exercice propre)* | H26: =SUM(H22:H25) -> 7288691.8 | K26: =SUM(K22:K25) -> 7633658.52 | N26: =SUM(N22:N25) -> 7833791.29 | Q26: =SUM(Q22:Q25) -> 8223570.39 | T26: =SUM(T22:T25) -> 8919660.36
A27: Exercices antérieurs | H27: 609139.91 | I27: 6001218.288 | J27: 5811470.083 | K27: 647749.38 | L27: 6001218.288 | M27: 5811470.083 | N27: 495120.88 | O27: 6001218.288 | P27: 5811470.083 | Q27: 122418.79 | R27: 6001218.288 | S27: 5811470.083 | T27: 600721.02 | U27: 6001218.288 | V27: 5811470.083
A28: Prélèvements | H28: 0 | I28: 0 | J28: 0 | K28: 0 | L28: 0 | M28: 0 | N28: 0 | O28: 0 | P28: 0 | Q28: 0 | R28: 0 | S28: 0 | T28: 0 | U28: 0 | V28: 0
A29: Total général* | H29: =SUM(H26:H28) -> 7897831.71 | K29: =SUM(K26:K28) -> 8281407.9 | N29: =SUM(N26:N28) -> 8328912.17 | Q29: =SUM(Q26:Q28) -> 8345989.18 | T29: =SUM(T26:T28) -> 9520381.38
A30: * Montant arrondi à l'euro

Sheet Extraordinaire GE
A1: =Coordonnées!A1 -> Synthèse du Budget | D1: =Coordonnées!D1 -> Administration communale de | J1: =Coordonnées!J1 -> SOMME-LEUZE | P1: =Coordonnées!P1 -> Code INS | R1: =Coordonnées!R1 -> 91120
P2: =Coordonnées!P2 -> Exercice: | R2: =Coordonnées!R2 -> 2023
A3: =Coordonnées!A3 -> Modèle officiel généré par l'application eComptes © SPW Intérieur et Action Sociale | P3: =Coordonnées!P3 -> Version: | R3: =Coordonnées!R3 -> 1
H6: Ventilation économique des dépenses et des recettes extraordinaires
H7: =Coordonnées!$H$27 -> Budget | K7: =Coordonnées!$H$27 -> Budget | N7: =Coordonnées!$H$27 -> Budget | Q7: =Coordonnées!$H$27 -> Budget | T7: =Coordonnées!$H$27 -> Budget
H8: Dépenses extraordinaires (Prévisions)
A9: Exercices: | H9: =K9-1 -> 2019 | K9: =N9-1 -> 2020 | N9: =Q9-1 -> 2021 | Q9: =T9-1 -> 2022 | T9: =R2 -> 2023
A10: Transferts | H10: 0 | I10: 5512664.26 | J10: 5512664.26 | K10: 0 | L10: 5512664.26 | M10: 5512664.26 | N10: 0 | O10: 5512664.26 | P10: 5512664.26 | Q10: 0 | R10: 5512664.26 | S10: 5512664.26 | T10: 0 | U10: 5512664.26 | V10: 5512664.26
A11: Investissements | H11: 1155746.67 | I11: 2726342.74 | J11: 2726342.74 | K11: 2566233.35 | L11: 2726342.74 | M11: 2726342.74 | N11: 2351750.92 | O11: 2726342.74 | P11: 2726342.74 | Q11: 2437820 | R11: 2726342.74 | S11: 2726342.74 | T11: 2163480 | U11: 2726342.74 | V11: 2726342.74
A12: Dette | H12: 23118.61 | I12: 4264832.04 | J12: 4264832.04 | K12: 23118.61 | L12: 4264832.04 | M12: 4264832.04 | N12: 23118.61 | O12: 4264832.04 | P12: 4264832.04 | Q12: 23118.61 | R12: 4264832.04 | S12: 4264832.04 | T12: 27548.51 | U12: 4264832.04 | V12: 4264832.04
A13: Prélèvements | H13: 0 | I13: 41563.69 | J13: 41563.69 | K13: 0 | L13: 41563.69 | M13: 41563.69 | N13: 0 | O13: 41563.69 | P13: 41563.69 | Q13: 0 | R13: 41563.69 | S13: 41563.69 | T13: 0 | U13: 41563.69 | V13: 41563.69
H14: 0 | I14: 0 | J14: 0 | K14: 0 | L14: 0 | M14: 0 | N14: 0 | O14: 0 | P14: 0 | Q14: 0 | R14: 0 | S14: 0 | T14: 0 | U14: 0 | V14: 0
A15: Total (exercice propre)* | H15: =SUM(H10:H14) -> 1178865.28 | K15: =SUM(K10:K14) -> 2589351.96 | N15: =SUM(N10:N14) -> 2374869.53 | Q15: =SUM(Q10:Q14) -> 2460938.61 | T15: =SUM(T10:T14) -> 2191028.51
A16: Exercices antérieurs | H16: 0 | I16: 1521059.02 | J16: 2351270.66 | K16: 0 | L16: 1659060.83 | M16: 1521059.02 | N16: 0 | O16: 2230351.92 | P16: 1659060.83 | Q16: 7715.23 | R16: 2351270.66 | S16: 2230351.92 | T16: 5.59 | U16: 2351270.66 | V16: 2230351.92
A17: Prélèvements | H17: 0 | I17: 1192323.53 | J17: 824300.6 | K17: 69151.58 | L17: 4295659.86 | M17: 1192323.53 | N17: 6000 | O17: 1045347.08 | P17: 4295659.86 | Q17: 8000 | R17: 824300.6 | S17: 1045347.08 | T17: 0 | U17: 824300.6 | V17: 1045347.08
A18: Total général* | H18: =SUM(H15:H17) -> 1178865.28 | K18: =SUM(K15:K17) -> 2658503.54 | N18: =SUM(N15:N17) -> 2380869.53 | Q18: =SUM(Q15:Q17) -> 2476653.84 | T18: =SUM(T15:T17) -> 2191034.1
A19: * Montant arrondi à l'euro
H20: Recettes extraordinaires (Prévisions)
A21: Exercices: | H21: =K21-1 -> 2019 | K21: =N21-1 -> 2020 | N21: =Q21-1 -> 2021 | Q21: =T21-1 -> 2022 | T21: =R2 -> 2023
A22: Transferts | H22: 184670.29 | I22: 373432.17 | J22: 697745.74 | K22: 268286.68 | L22: 365967.42 | M22: 373432.17 | N22: 273886.68 | O22: 414709.37 | P22: 365967.42 | Q22: 1278000 | R22: 697745.74 | S22: 414709.37 | T22: 881880 | U22: 557211.56 | V22: 577850.16
A23: Investissements | H23: 0 | I23: 12728583.2 | J23: 13240574.68 | K23: 0 | L23: 12120371.99 | M23: 12728583.2 | N23: 6000 | O23: 12941517.73 | P23: 12120371.99 | Q23: 8000 | R23: 13240574.68 | S23: 12941517.73 | T23: 0 | U23: 13289627 | V23: 13396094.26
A24: Dette | H24: 795029.71 | I24: 548784.99 | J24: 408005.67 | K24: 1509516.42 | L24: 536819.05 | M24: 548784.99 | N24: 1396862.99 | O24: 344975.81 | P24: 536819.05 | Q24: 1140653.84 | R24: 408005.67 | S24: 344975.81 | T24: 1208118.61 | U24: 128208.3867 | V24: 26303.79667
A25: Prélèvements | H25: 0 | I25: 0 | J25: 0 | K25: 0 | L25: 0 | M25: 0 | N25: 0 | O25: 0 | P25: 0 | Q25: 0 | R25: 0 | S25: 0 | T25: 0 | U25: 0 | V25: 0
A26: Total (exercice propre)* | H26: =SUM(H22:H25) -> 979700 | K26: =SUM(K22:K25) -> 1777803.1 | N26: =SUM(N22:N25) -> 1676749.67 | Q26: =SUM(Q22:Q25) -> 2426653.84 | T26: =SUM(T22:T25) -> 2089998.61
A27: Exercices antérieurs | H27: 0 | K27: 39875 | L27: 10122961.63 | M27: 6628334.56 | N27: 0 | O27: 6248838.15 | P27: 10122961.63 | Q27: 0 | R27: 6834216 | S27: 6248838.15 | T27: 0 | U27: 6001218.288 | V27: 5811470.083
A28: Prélèvements | H28: 199165.28 | I28: 0 | J28: 0 | K28: 840825.44 | L28: 0 | M28: 0 | N28: 704119.86 | O28: 0 | P28: 0 | Q28: 50000 | R28: 0 | S28: 0 | T28: 101035.49 | U28: 0 | V28: 0
A29: Total général* | H29: =SUM(H26:H28) -> 1178865.28 | K29: =SUM(K26:K28) -> 2658503.54 | N29: =SUM(N26:N28) -> 2380869.53 | Q29: =SUM(Q26:Q28) -> 2476653.84 | T29: =SUM(T26:T28) -> 2191034.1
A30: * Montant arrondi à l'euro

Sheet DO fonctions
A1: =Coordonnées!A1 -> Synthèse du Budget | E1: Administration communale de: | G1: =Coordonnées!J1 -> SOMME-LEUZE | I1: Code INS: | J1: =Coordonnées!R1 -> 91120
I2: Exercice: | J2: =Coordonnées!R2 -> 2023
A3: =Coordonnées!A3 -> Modèle officiel généré par l'application eComptes © SPW Intérieur et Action Sociale | I3: version: | J3: =Coordonnées!R3 -> 1
E4: Ventilation fonctionnelle
E5: Evolution des dépenses ordinaires (exercice propre)
E6: =Coordonnées!$H$27 -> Budget | F6: =Coordonnées!$H$27 -> Budget | G6: =Coordonnées!$H$27 -> Budget | H6: =Coordonnées!$H$27 -> Budget | I6: =Coordonnées!$H$27 -> Budget
E7: =F7-1 -> 2019 | F7: =G7-1 -> 2020 | G7: =H7-1 -> 2021 | H7: =I7-1 -> 2022 | I7: =J2 -> 2023
A8: 0 Recettes et dépenses générales | E8: 51200 | F8: 42400 | G8: 60200 | H8: 57400 | I8: 46850
A9: 1 Administration générale | E9: 1859804.91 | F9: 1943845.9 | G9: 2103058.08 | H9: 2165845.19 | I9: 2412233.08
A10: 3 Sécurité | E10: 740516.95 | F10: 763701.7 | G10: 675896.27 | H10: 675896.27 | I10: 683782.61
A11: 4 Voiries-communications | E11: 1696327.06 | F11: 1843807.95 | G11: 1837423.32 | H11: 2017458.83 | I11: 2106867.08
A12: 5 Industrie - commerce | E12: 46995.51 | F12: 48327.74 | G12: 56782.47 | H12: 51600.92 | I12: 54308.2
A13: 6 Sylviculture- Agriculture | E13: 23375.43 | F13: 19121.84 | G13: 16827.46 | H13: 15280 | I13: 16930
A14: 70>75 Enseignement | E14: 838012.74 | F14: 846904.53 | G14: 885896.17 | H14: 947018.52 | I14: 1046141.8
A15: 76>77 Culture et sports | E15: 395018.29 | F15: 453149.37 | G15: 512233.36 | H15: 507482.82 | I15: 590353.02
A16: 78 Radio, télévision, presse | E16: 0 | F16: 0 | G16: 0 | H16: 0 | I16: 0
A17: 79 Culte | E17: 105165.1 | F17: 98502.98 | G17: 102498.76 | H17: 77193.74 | I17: 83661.51
A18: 80>86 Action Sociale | E18: 780626.58 | F18: 792847.69 | G18: 777670.37 | H18: 896793.82 | I18: 1006675
A19: 87 Santé publique et hygiène | E19: 596694.15 | F19: 608956.49 | G19: 660246.35 | H19: 667892.19 | I19: 711533.8
A20: 90>92 Logement | E20: 148229.61 | F20: 148034.01 | G20: 132134.71 | H20: 136851.45 | I20: 146138.79
A21: 93 Aménagement du territoire | E21: 6505.29 | F21: 6504.34 | G21: 6500.03 | H21: 6497.29 | I21: 6494.46

Sheet RO fonctions
A1: =Coordonnées!A1 -> Synthèse du Budget | E1: Administration communale de: | G1: =Coordonnées!J1 -> SOMME-LEUZE | I1: Code INS: | J1: =Coordonnées!R1 -> 91120
I2: Exercice: | J2: =Coordonnées!R2 -> 2023
A3: =Coordonnées!A3 -> Modèle officiel généré par l'application eComptes © SPW Intérieur et Action Sociale | I3: version: | J3: =Coordonnées!R3 -> 1
E4: Ventilation fonctionnelle
E5: Evolution des recettes ordinaires (exercice propre)
E6: =Coordonnées!$H$27 -> Budget | F6: =Coordonnées!$H$27 -> Budget | G6: =Coordonnées!$H$27 -> Budget | H6: =Coordonnées!$H$27 -> Budget | I6: =Coordonnées!$H$27 -> Budget
E7: =F7-1 -> 2019 | F7: =G7-1 -> 2020 | G7: =H7-1 -> 2021 | H7: =I7-1 -> 2022 | I7: =J2 -> 2023
A8: 0 Recettes et dépenses générales | E8: 5908436.28 | F8: 6167170.19 | G8: 6100013.99 | H8: 6566967 | I8: 8466824.46
A9: 1 Administration générale | E9: 363658.1 | F9: 402000.97 | G9: 422533.38 | H9: 189289.13 | I9: 197519.01
A10: 3 Sécurité | E10: 0 | F10: 170000 | G10: 6000 | H10: 6050 | I10: 76500
A11: 4 Voiries-communications | E11: 620787.79 | F11: 233509.54 | G11: 840442.33 | H11: 561350.37 | I11: 84459.56
A12: 5 Industrie - commerce | E12: 115652.36 | F12: 114282.12 | G12: 114258.27 | H12: 115035.17 | I12: 120386.3
A13: 6 Sylviculture- Agriculture | E13: 147258.44 | F13: 121656.71 | G13: 127653.73 | H13: 152095 | I13: 71252.61
A14: 70>75 Enseignement | E14: 419765.58 | F14: 467907.28 | G14: 479450.6 | H14: 294047.06 | I14: 318079.17
A15: 76>77 Culture et sports | E15: 146641.47 | F15: 141141.47 | G15: 136155.81 | H15: 159050.05 | I15: 140910.27
A16: 78 Radio, télévision, presse | E16: 0 | F16: 0 | G16: 0 | H16: 0 | I16: 0
A17: 79 Culte | E17: 0 | F17: 0 | G17: 0 | H17: 0 | I17: 0
A18: 80>86 Action Sociale | E18: 57873.92 | F18: 370000 | G18: 0 | H18: 230000 | I18: 0
A19: 87 Santé publique et hygiène | E19: 43871.37 | F19: 33881.37 | G19: 32848.66 | H19: 11050 | I19: 9950
A20: 90>92 Logement | E20: 66446.4 | F20: 52358.25 | G20: 62055.4 | H20: 53555.4 | I20: 29000
A21: 93 Aménagement du territoire | E21: 7440 | F21: 7500 | G21: 7500 | H21: 7500 | I21: 5500

Sheet DE fonctions
A1: =Coordonnées!A1 -> Synthèse du Budget | E1: Administration communale de: | G1: =Coordonnées!J1 -> SOMME-LEUZE | I1: Code INS: | J1: =Coordonnées!R1 -> 91120
I2: Exercice: | J2: =Coordonnées!R2 -> 2023
A3: =Coordonnées!A3 -> Modèle officiel généré par l'application eComptes © SPW Intérieur et Action Sociale | I3: version: | J3: =Coordonnées!R3 -> 1
E4: Ventilation fonctionnelle
E5: Evolution des dépenses extraordinaires (exercice propre)
E6: =Coordonnées!$H$27 -> Budget | F6: =Coordonnées!$H$27 -> Budget | G6: =Coordonnées!$H$27 -> Budget | H6: =Coordonnées!$H$27 -> Budget | I6: =Coordonnées!$H$27 -> Budget
E7: =F7-1 -> 2019 | F7: =G7-1 -> 2020 | G7: =H7-1 -> 2021 | H7: =I7-1 -> 2022 | I7: =J2 -> 2023
A8: 0 Recettes et dépenses générales | E8: 0 | F8: 69151.58 | G8: 6000 | H8: 8000 | I8: 0
A9: 1 Administration générale | E9: 93000 | F9: 98000 | G9: 80000 | H9: 571000 | I9: 55000
A10: 3 Sécurité | E10: 0 | F10: 0 | G10: 0 | H10: 0 | I10: 0
A11: 4 Voiries-communications | E11: 466000 | F11: 2020733.35 | G11: 1838750.92 | H11: 420820 | I11: 559700
A12: 5 Industrie - commerce | E12: 15946.67 | F12: 0 | G12: 0 | H12: 3000 | I12: 2900
A13: 6 Sylviculture- Agriculture | E13: 10000 | F13: 10000 | G13: 10000 | H13: 5000 | I13: 5000
A14: 70>75 Enseignement | E14: 42800 | F14: 11500 | G14: 39500 | H14: 23500 | I14: 54880
A15: 76>77 Culture et sports | E15: 335000 | F15: 327500 | G15: 342500 | H15: 923500 | I15: 1042500
A16: 78 Radio, télévision, presse | E16: 0 | F16: 0 | G16: 0 | H16: 0 | I16: 0
A17: 79 Culte | E17: 122000 | F17: 75000 | G17: 0 | H17: 410000 | I17: 418500
A18: 80>86 Action Sociale | E18: 0 | F18: 0 | G18: 0 | H18: 0 | I18: 4340
A19: 87 Santé publique et hygiène | E19: 88118.61 | F19: 40618.61 | G19: 58118.61 | H19: 89118.61 | I19: 38118.61
A20: 90>92 Logement | E20: 6000 | F20: 6000 | G20: 6000 | H20: 15000 | I20: 10089.9
A21: 93 Aménagement du territoire | E21: 0 | F21: 0 | G21: 0 | H21: 0 | I21: 0

Sheet RE fonctions
A1: =Coordonnées!A1 -> Synthèse du Budget | E1: Administration communale de: | G1: =Coordonnées!J1 -> SOMME-LEUZE | I1: Code INS: | J1: =Coordonnées!R1 -> 91120
I2: Exercice: | J2: =Coordonnées!R2 -> 2023
A3: =Coordonnées!A3 -> Modèle officiel généré par l'application eComptes © SPW Intérieur et Action Sociale | I3: version: | J3: =Coordonnées!R3 -> 1
E4: Ventilation fonctionnelle
E5: Evolution des recettes extraordinaires (exercice propre)
E6: =Coordonnées!$H$27 -> Budget | F6: =Coordonnées!$H$27 -> Budget | G6: =Coordonnées!$H$27 -> Budget | H6: =Coordonnées!$H$27 -> Budget | I6: =Coordonnées!$H$27 -> Budget
E7: =F7-1 -> 2019 | F7: =G7-1 -> 2020 | G7: =H7-1 -> 2021 | H7: =I7-1 -> 2022 | I7: =J2 -> 2023
A8: 0 Recettes et dépenses générales | E8: 199165.28 | F8: 880700.44 | G8: 704119.86 | H8: 50000 | I8: 101035.49
A9: 1 Administration générale | E9: 80000 | F9: 93000 | G9: 50000 | H9: 566000 | I9: 53000
A10: 3 Sécurité | E10: 0 | F10: 0 | G10: 0 | H10: 0 | I10: 0
A11: 4 Voiries-communications | E11: 413000 | F11: 1287303.1 | G11: 1212249.67 | H11: 413820 | I11: 537000
A12: 5 Industrie - commerce | E12: 0 | F12: 0 | G12: 0 | H12: 0 | I12: 0
A13: 6 Sylviculture- Agriculture | E13: 0 | F13: 0 | G13: 0 | H13: 0 | I13: 0
A14: 70>75 Enseignement | E14: 4200 | F14: 0 | G14: 28000 | H14: 11500 | I14: 37880
A15: 76>77 Culture et sports | E15: 320000 | F15: 327500 | G15: 342500 | H15: 917500 | I15: 1010000
A16: 78 Radio, télévision, presse | E16: 0 | F16: 0 | G16: 0 | H16: 0 | I16: 0
A17: 79 Culte | E17: 105000 | F17: 70000 | G17: 0 | H17: 417715.23 | I17: 410000
A18: 80>86 Action Sociale | E18: 0 | F18: 0 | G18: 0 | H18: 0 | I18: 0
A19: 87 Santé publique et hygiène | E19: 57500 | F19: 0 | G19: 35000 | H19: 83118.61 | I19: 38118.61
A20: 90>92 Logement | E20: 0 | F20: 0 | G20: 9000 | H20: 17000 | I20: 4000
A21: 93 Aménagement du territoire | E21: 0 | F21: 0 | G21: 0 | H21: 0 | I21: 0

Sheet Commentaires
A1: =Coordonnées!A1 -> Synthèse du Budget | D1: =Coordonnées!D1 -> Administration communale de | J1: =Coordonnées!J1 -> SOMME-LEUZE | P1: =Coordonnées!P1 -> Code INS | R1: =Coordonnées!R1 -> 91120
P2: =Coordonnées!P2 -> Exercice: | R2: =Coordonnées!R2 -> 2023
A3: =Coordonnées!A3 -> Modèle officiel généré par l'application eComptes © SPW Intérieur et Action Sociale | P3: =Coordonnées!P3 -> Version: | R3: =Coordonnées!R3 -> 1
A6: Commentaires

Sheet Glossaire
A1: =Coordonnées!A1 -> Synthèse du Budget | D1: =Coordonnées!D1 -> Administration communale de | J1: =Coordonnées!J1 -> SOMME-LEUZE | P1: =Coordonnées!P1 -> Code INS | R1: =Coordonnées!R1 -> 91120
P2: =Coordonnées!P2 -> Exercice: | R2: =Coordonnées!R2 -> 2023
A3: =Coordonnées!A3 -> Modèle officiel généré par l'application eComptes © SPW Intérieur et Action Sociale | P3: =Coordonnées!P3 -> Version: | R3: =Coordonnées!R3 -> 1
A6: Glossaire
A8: Termes | F8: Définitions:
A9: Exercice propre | F9: L'exercice du document allant du 1er janvier au 31 décembre
A10: Exercices antérieurs | F10: Les opérations antérieures à l'exercice propre
A11: Résultat global | F11: Le boni ou le mali de l'exercice propre cumulé avec celui des exercices antérieurs
A12: Dépenses de transfert | F12: Dépenses effectuées à destination de tiers à la commune (d'autres institutions, organismes, ménages ..)
A13: Recettes de transfert | F13: Recettes en provenance de tiers ( subsides, taxes, … )
A14: Recettes de prestation | F14: Recettes découlant de services payants rendus par la commune, de locations, de droits d'entrée …
A15: Dépenses de prélèvements | F15: Sommes prélevées sur les excédents budgétaires par la commune pour alimenter des fonds de réserves ordinaires ou extraordinaires (pour financer des dépenses d'investissement sur fonds propres ) ou des provisions ( pour faire face à des charges futures importantes )
A16: Recettes de prélèvements | F16: Utilisation des fonds de réserve et des provisions (constitués au moyen des dépenses de prélèvement)
A17: Ordinaire | F17: Les recettes et dépenses nécessaires au fonctionnement de la commune (taxes, subventions , salaires,électricité,fournitures,…)
A18: Extraordinaire | F18: Les dépenses et leurs moyens de financement afférentes aux investissements ( travaux importants, rénovations, achat de matériel et de véhicules etc … )
